[Event "84th ESP-ch 2019"]
[Site "Marbella"]
[Date "2019.11.23"]
[Round "8.19"]
[White "Vega Gutierrez, Sabrina"]
[Black "Garcia Romero, Benjamin Abel"]
[Result "1-0"]
[ECO "C44"]
[WhiteElo "2374"]
[BlackElo "2234"]
[Annotator "RC"]
[PlyCount "123"]
[EventDate "2019.11.16"]
[EventType "swiss"]
[EventCountry "ESP"]
[SourceTitle "playchess.com"]
[Source "ChessBase"]
[SourceQuality "1"]
[TimeControl "5400+30"]

1. e4 {[%emt 0:00:00]} e5 {[%emt 0:02:15]} 2. Nf3 {[%emt 0:00:00]} Nc6 {[%emt 0:00:20]} 3. d4 {[%emt 0:00:47]} exd4 {[%emt 0:00:40]} 4. Nxd4 {[%emt 0:00:09]} Nf6 {[%emt 0:01:10]} 5. Nxc6 {[%emt 0:00:23]} bxc6 {[%emt 0:00:22]} 6. Qe2 {[%emt 0:00:18]} Bb4+ {[%emt 0:04:48]} 7. c3 {[%emt 0:00:18]} Bc5 {[%emt 0:02:44]} 8. e5 {[%emt 0:00:20]} Nd5 {[%emt 0:00:58]} 9. Qg4 {[%emt 0:12:38]} g6 {[%emt 0:02:11]} 10. Bg5 {[%emt 0:00:26]} h5 {[%emt 0:01:42]} 11. Qh4 {[%emt 0:00:47]} Be7 {[%emt 0:00:12]} 12. Bxe7 {[%emt 0:01:00]} Qxe7 {[%emt 0:00:18]} 13. Qxe7+ {[%emt 0:01:54]} Kxe7 {[%emt 0:00:40]} 14. Nd2 {[%emt 0:00:49]} d6 {[%emt 0:13:24]} 15. exd6+ {[%emt 0:01:37]} cxd6 {[%emt 0:00:09]} 16. O-O-O {[%emt 0:01:08]} Be6 {[%emt 0:05:23]} 17. Ne4 {[%emt 0:10:28]} Rhd8 {[%emt 0:10:50]} 18. Ng5 {[%emt 0:07:00]} Nc7 {[%emt 0:06:08]} 19. Nxe6 {[%emt 0:04:11]} Nxe6 {[%emt 0:00:22]} 20. h4 {[%emt 0:06:32]} a5 {[%emt 0:01:05]} 21. Rh3 {[%emt 0:01:14]} d5 {[%emt 0:03:46]} 22. Re3 {[%emt 0:07:23]} Kd6 {[%emt 0:10:31]} 23. g3 {[%emt 0:03:12]} Re8 {[%emt 0:03:37]} 24. Bh3 {[%emt 0:01:22]} Nc5 {[%emt 0:02:50]} 25. Rf3 {[%emt 0:02:58]} f5 {[%emt 0:09:31]} 26. c4 {[%emt 0:00:46]} a4 {[%emt 0:02:31]} 27. Bg2 {[%emt 0:01:57]} Ne4 {[%emt 0:01:33]} 28. cxd5 {[%emt 0:03:13]} cxd5 {[%emt 0:00:45]} 29. Rfd3 {[%emt 0:00:23]} Rec8+ {[%emt 0:00:24]} 30. Kb1 {[%emt 0:00:12]} Ra5 {[%emt 0:01:47]} 31. Rd4 {[%emt 0:09:57]} Nf6 {[%emt 0:06:56]} 32. a3 {[%emt 0:01:31]} Re8 {[%emt 0:01:38]} 33. Bf3 {[%emt 0:01:46]} Ne4 {[%emt 0:00:32]} 34. Bxe4 {[%emt 0:10:16]} Rxe4 {[%emt 0:00:33]} 35. f3 {[%emt 0:00:56]} Re3 {[%emt 0:00:42]} 36. Rb4 {[%emt 0:03:20]} Ra6 {[%emt 0:01:26]} 37. Rb5 {[%emt 0:01:20]} Rxf3 {[%emt 0:00:15]} 38. Rbxd5+ {[%emt 0:00:19]} Ke6 {[%emt 0:00:31]} 39. R5d3 {[%emt 0:00:21]} Rxd3 {[%emt 0:02:03]} 40. Rxd3 {[%emt 0:00:03]} Ke5 {[%emt 0:01:26]} 41. Re3+ {[%emt 0:00:10]} Kd4 {[%emt 0:00:07]} 42. Rf3 {[%emt 0:00:43]} Re6 {[%emt 0:00:27]} 43. b3 {[%emt 0:03:13]} axb3 {[%emt 0:01:13]} 44. Kb2 {[%emt 0:01:03]} Ra6 {[%emt 0:00:38]} 45. Rf4+ {[%emt 0:02:42]} Ke5 {[%emt 0:00:30]} 46. a4 {[%emt 0:00:22]} Ra7 {[%emt 0:00:34]} 47. Rb4 {[%emt 0:00:37]} Ra6 {[%emt 0:00:22]} 48. Kxb3 {[%emt 0:00:54]} Kd5 {[%emt 0:00:08]} 49. Ka3 {[%emt 0:00:49]} Ke5 {[%emt 0:00:18]} 50. Rb5+ {[%emt 0:00:11]} Ke4 {[%emt 0:00:07]} 51. a5 {[%emt 0:00:14]} f4 {[%emt 0:01:14]} 52. gxf4 {[%emt 0:00:04]} Kxf4 {[%emt 0:00:07]} 53. Rg5 {[%emt 0:01:09]} Re6 {[%emt 0:00:44]} 54. Kb4 {[%emt 0:00:19]} Re1 {[%emt 0:00:53]} 55. a6 {[%emt 0:00:23]} Rb1+ {[%emt 0:00:17]} 56. Kc5 {[%emt 0:00:19]} Ra1 {[%emt 0:00:52]} 57. Kb6 {[%emt 0:00:09]} Rb1+ {[%emt 0:00:10]} 58. Rb5 {[%emt 0:01:15]} Rd1 {[%emt 0:00:45]} 59. a7 {[%emt 0:00:29]} Rd6+ {[%emt 0:00:09]} 60. Ka5 {[%emt 0:00:33]} Rd8 {[%emt 0:00:16]} 61. Rb8 {[%emt 0:00:15]} Rd5+ {[%emt 0:00:16]} 62. Kb4 {[%emt 0:00:30]} 1-0

[Event "84th ESP-ch 2019"]
[Site "Marbella"]
[Date "2019.11.23"]
[Round "8.20"]
[White "Moral Garcia, Serafin"]
[Black "Serarols Mabras, Bernat"]
[Result "1-0"]
[ECO "B10"]
[WhiteElo "2267"]
[BlackElo "2367"]
[Annotator "ChessBase"]
[PlyCount "77"]
[EventDate "2019.11.16"]
[EventType "swiss"]
[EventCountry "ESP"]
[SourceTitle "playchess.com"]
[Source "ChessBase"]
[SourceQuality "1"]
[TimeControl "5400+30"]

1. e4 {[%emt 0:00:00]} c6 {[%emt 0:00:10]} 2. Nc3 {[%emt 0:00:00]} d5 {[%emt 0:00:06]} 3. Nf3 {[%emt 0:00:01]} Nf6 {[%emt 0:00:12]} 4. e5 {[%emt 0:00:34]} Ne4 {[%emt 0:00:06]} 5. d4 {[%emt 0:01:05]} Nxc3 {[%emt 0:00:40]} 6. bxc3 {[%emt 0:00:30]} Bg4 {[%emt 0:00:26]} 7. h3 {[%emt 0:02:57]} Bh5 {[%emt 0:04:28]} 8. e6 {[%emt 0:02:45]} fxe6 {[%emt 0:06:30]} 9. g4 {[%emt 0:02:12]} Bf7 {[%emt 0:01:47]} 10. Ne5 {[%emt 0:01:46]} Nd7 {[%emt 0:03:37]} 11. Bf4 {[%emt 0:02:43]} Qa5 {[%emt 0:13:29]} 12. Kd2 {[%emt 0:10:15]} g5 {[%emt 0:15:48]} 13. Nxf7 {[%emt 0:04:21]} Kxf7 {[%emt 0:00:59]} 14. Bxg5 {[%emt 0:00:09]} Bg7 {[%emt 0:05:37]} 15. Qf3+ {[%emt 0:00:34]} Ke8 {[%emt 0:00:17]} 16. Qe3 {[%emt 0:00:35]} e5 {[%emt 0:01:49]} 17. f4 {[%emt 0:08:50]} e4 {[%emt 0:09:05]} 18. Rb1 {[%emt 0:05:46]} Nb6 {[%emt 0:08:44]} 19. f5 {[%emt 0:04:11]} Qxa2 {[%emt 0:08:42]} 20. Be2 {[%emt 0:02:29]} Qa3 {[%emt 0:00:02]} 21. Bf4 {[%emt 0:05:54]} e6 {[%emt 0:02:02]} 22. Be5 {[%emt 0:00:59]} Qe7 {[%emt 0:03:27]} 23. Qg3 {[%emt 0:02:54]} Rg8 {[%emt 0:00:55]} 24. Bd6 {[%emt 0:06:46]} Qg5+ {[%emt 0:03:51]} 25. Bf4 {[%emt 0:00:12]} Qf6 {[%emt 0:00:44]} 26. g5 {[%emt 0:02:58]} Qxf5 {[%emt 0:00:31]} 27. Bh5+ {[%emt 0:00:04]} Kd7 {[%emt 0:00:21]} 28. Be2 {[%emt 0:03:42]} Raf8 {[%emt 0:02:08]} 29. Rhf1 {[%emt 0:00:26]} Qg6 {[%emt 0:00:36]} 30. h4 {[%emt 0:04:40]} h5 {[%emt 0:01:20]} 31. Bc7 {[%emt 0:01:16]} Rxf1 {[%emt 0:01:56]} 32. Bxf1 {[%emt 0:00:16]} Rf8 {[%emt 0:01:56]} 33. Bxb6 {[%emt 0:02:27]} axb6 {[%emt 0:00:09]} 34. Rxb6 {[%emt 0:01:01]} Kc8 {[%emt 0:01:05]} 35. Ba6 {[%emt 0:00:23]} e3+ {[%emt 0:01:24]} 36. Kc1 {[%emt 0:00:04]} e5 {[%emt 0:01:21]} 37. Rxb7 {[%emt 0:00:58]} Rf1+ {[%emt 0:00:07]} 38. Kb2 {[%emt 0:00:09]} Kd8 {[%emt 0:00:02]} 39. Bxf1 {[%emt 0:00:07]} 1-0

[Event "84th ESP-ch 2019"]
[Site "Marbella"]
[Date "2019.11.23"]
[Round "8.21"]
[White "Martin Hernandez, Ruben"]
[Black "Bernabeu Lopez, Carlos Javier"]
[Result "1/2-1/2"]
[ECO "E91"]
[WhiteElo "2206"]
[BlackElo "2366"]
[Annotator "ChessBase"]
[PlyCount "117"]
[EventDate "2019.11.16"]
[EventType "swiss"]
[EventCountry "ESP"]
[SourceTitle "playchess.com"]
[Source "ChessBase"]
[SourceQuality "1"]
[TimeControl "5400+30"]

1. e4 {[%emt 0:00:16]} g6 {[%emt 0:00:00]} 2. d4 {[%emt 0:01:08]} Bg7 {[%emt 0:00:00]} 3. c4 {[%emt 0:02:23]} d6 {[%emt 0:00:00]} 4. Nc3 {[%emt 0:00:23]} Nf6 {[%emt 0:00:00]} 5. Be2 {[%emt 0:02:02]} O-O {[%emt 0:00:25]} 6. Nf3 {[%emt 0:00:07]} Bg4 {[%emt 0:00:04]} 7. Be3 {[%emt 0:06:43]} Nfd7 {[%emt 0:00:21]} 8. Ng1 {[%emt 0:04:10]} Bxe2 {[%emt 0:02:08]} 9. Ngxe2 {[%emt 0:00:20]} c5 {[%emt 0:00:57]} 10. O-O {[%emt 0:03:00]} cxd4 {[%emt 0:09:01]} 11. Bxd4 {[%emt 0:06:26]} Bxd4 {[%emt 0:04:07]} 12. Nxd4 {[%emt 0:00:16]} Nc6 {[%emt 0:00:09]} 13. b3 {[%emt 0:02:24]} a5 {[%emt 0:02:20]} 14. Qd2 {[%emt 0:04:04]} Nc5 {[%emt 0:03:45]} 15. Rfd1 {[%emt 0:01:55]} Ne5 {[%emt 0:06:19]} 16. f4 {[%emt 0:08:31]} Ned3 {[%emt 0:04:37]} 17. Qe3 {[%emt 0:01:03]} Nb4 {[%emt 0:20:31]} 18. a3 {[%emt 0:10:24]} Nxb3 {[%emt 0:03:34]} 19. Nxb3 {[%emt 0:03:31]} Nc2 {[%emt 0:00:19]} 20. Qf2 {[%emt 0:00:39]} Nxa1 {[%emt 0:00:06]} 21. Rxa1 {[%emt 0:00:31]} Rc8 {[%emt 0:01:05]} 22. Nd2 {[%emt 0:00:26]} Rc5 {[%emt 0:04:00]} 23. Rb1 {[%emt 0:01:26]} Qc8 {[%emt 0:07:28]} 24. Nd5 {[%emt 0:02:05]} Re8 {[%emt 0:00:19]} 25. f5 {[%emt 0:01:43]} b5 {[%emt 0:04:38]} 26. f6 {[%emt 0:03:49]} bxc4 {[%emt 0:02:34]} 27. fxe7 {[%emt 0:01:35]} Rxd5 {[%emt 0:00:17]} 28. exd5 {[%emt 0:00:06]} Rxe7 {[%emt 0:00:07]} 29. Qd4 {[%emt 0:01:49]} c3 {[%emt 0:04:02]} 30. Rc1 {[%emt 0:03:42]} c2 {[%emt 0:02:48]} 31. Nf3 {[%emt 0:04:24]} Qf5 {[%emt 0:02:29]} 32. Qd2 {[%emt 0:00:49]} Rc7 {[%emt 0:01:22]} 33. Qxa5 {[%emt 0:00:56]} Rc5 {[%emt 0:00:04]} 34. Qd2 {[%emt 0:00:07]} Qe4 {[%emt 0:01:10]} 35. Kf1 {[%emt 0:04:26]} Qc4+ {[%emt 0:01:06]} 36. Qe2 {[%emt 0:01:00]} Qb3 {[%emt 0:01:08]} 37. h3 {[%emt 0:02:56]} Qb2 {[%emt 0:04:30]} 38. Qd2 {[%emt 0:00:06]} Rxd5 {[%emt 0:00:58]} 39. Qxc2 {[%emt 0:00:10]} Qxa3 {[%emt 0:00:10]} 40. Qc8+ {[%emt 0:00:49]} Kg7 {[%emt 0:00:03]} 41. Qc3+ {[%emt 0:00:04]} Qxc3 {[%emt 0:00:02]} 42. Rxc3 {[%emt 0:00:06]} Kf6 {[%emt 0:01:10]} 43. Ke2 {[%emt 0:00:12]} Ra5 {[%emt 0:00:16]} 44. Rd3 {[%emt 0:00:59]} Ra6 {[%emt 0:02:04]} 45. g4 {[%emt 0:00:15]} h6 {[%emt 0:00:04]} 46. Ke3 {[%emt 0:00:12]} Ke6 {[%emt 0:00:34]} 47. Kf4 {[%emt 0:00:35]} Kf6 {[%emt 0:00:22]} 48. h4 {[%emt 0:00:43]} Ra4+ {[%emt 0:00:44]} 49. Rd4 {[%emt 0:01:49]} Ra6 {[%emt 0:00:28]} 50. Nd2 {[%emt 0:01:21]} Ke6 {[%emt 0:00:23]} 51. Nc4 {[%emt 0:03:43]} Rc6 {[%emt 0:00:57]} 52. Re4+ {[%emt 0:00:27]} Kf6 {[%emt 0:02:23]} 53. Ne3 {[%emt 0:00:21]} Rc5 {[%emt 0:00:22]} 54. Re8 {[%emt 0:04:10]} Ra5 {[%emt 0:01:06]} 55. Rh8 {[%emt 0:02:26]} Kg7 {[%emt 0:00:53]} 56. Rd8 {[%emt 0:00:09]} Ra4+ {[%emt 0:00:04]} 57. Kf3 {[%emt 0:00:49]} Rd4 {[%emt 0:01:30]} 58. Re8 {[%emt 0:01:42]} h5 {[%emt 0:00:55]} 59. gxh5 {[%emt 0:01:33]} 1/2-1/2

[Event "84th ESP-ch 2019"]
[Site "Marbella"]
[Date "2019.11.23"]
[Round "8.22"]
[White "Perez Garcia, Alejandro"]
[Black "Garcia Vicente, Nieves"]
[Result "1-0"]
[ECO "A13"]
[WhiteElo "2343"]
[BlackElo "2175"]
[Annotator "ChessBase"]
[PlyCount "87"]
[EventDate "2019.11.16"]
[EventType "swiss"]
[EventCountry "ESP"]
[SourceTitle "playchess.com"]
[Source "ChessBase"]
[SourceQuality "1"]
[TimeControl "5400+30"]

1. c4 {[%emt 0:00:00]} e6 {[%emt 0:00:00]} 2. g3 {[%emt 0:00:00]} d5 {[%emt 0:00:00]} 3. Bg2 {[%emt 0:00:00]} Nf6 {[%emt 0:00:11]} 4. Nf3 {[%emt 0:00:00]} dxc4 {[%emt 0:01:28]} 5. Qa4+ {[%emt 0:00:19]} Nbd7 {[%emt 0:03:25]} 6. Qxc4 {[%emt 0:00:03]} a6 {[%emt 0:00:22]} 7. Qb3 {[%emt 0:00:03]} Be7 {[%emt 0:07:05]} 8. O-O {[%emt 0:02:33]} O-O {[%emt 0:03:45]} 9. d4 {[%emt 0:06:18]} c5 {[%emt 0:02:30]} 10. Rd1 {[%emt 0:00:55]} Qb6 {[%emt 0:10:43]} 11. Qxb6 {[%emt 0:09:29]} Nxb6 {[%emt 0:00:03]} 12. Nc3 {[%emt 0:10:55]} h6 {[%emt 0:02:45]} 13. dxc5 {[%emt 0:13:10]} Bxc5 {[%emt 0:00:15]} 14. Bf4 {[%emt 0:00:09]} Nbd5 {[%emt 0:01:52]} 15. Nxd5 {[%emt 0:05:38]} Nxd5 {[%emt 0:01:42]} 16. Rac1 {[%emt 0:02:34]} Nxf4 {[%emt 0:08:00]} 17. Rxc5 {[%emt 0:10:17]} Nxg2 {[%emt 0:00:57]} 18. Kxg2 {[%emt 0:00:10]} Re8 {[%emt 0:09:44]} 19. Ne5 {[%emt 0:07:06]} f6 {[%emt 0:00:27]} 20. Nd7 {[%emt 0:07:58]} e5 {[%emt 0:07:29]} 21. Rc7 {[%emt 0:03:21]} b5 {[%emt 0:00:28]} 22. Rd6 {[%emt 0:02:57]} Kh8 {[%emt 0:01:46]} 23. Nc5 {[%emt 0:01:10]} a5 {[%emt 0:01:35]} 24. e4 {[%emt 0:02:40]} Rb8 {[%emt 0:04:07]} 25. f4 {[%emt 0:01:05]} exf4 {[%emt 0:02:31]} 26. gxf4 {[%emt 0:00:19]} Bg4 {[%emt 0:02:30]} 27. f5 {[%emt 0:02:24]} Rec8 {[%emt 0:01:39]} 28. Rdd7 {[%emt 0:03:29]} Rxc7 {[%emt 0:00:17]} 29. Rxc7 {[%emt 0:00:06]} Be2 {[%emt 0:00:15]} 30. b3 {[%emt 0:01:24]} Rd8 {[%emt 0:06:36]} 31. Ne6 {[%emt 0:01:04]} Rg8 {[%emt 0:02:07]} 32. Nf4 {[%emt 0:02:53]} Bd1 {[%emt 0:00:47]} 33. Rc1 {[%emt 0:02:08]} Rd8 {[%emt 0:00:57]} 34. Kf2 {[%emt 0:01:14]} h5 {[%emt 0:05:06]} 35. Ne6 {[%emt 0:01:57]} Rd2+ {[%emt 0:02:13]} 36. Ke3 {[%emt 0:01:30]} Rxh2 {[%emt 0:00:07]} 37. Rxd1 {[%emt 0:00:20]} Rxa2 {[%emt 0:00:24]} 38. Kf4 {[%emt 0:00:46]} Rf2+ {[%emt 0:00:50]} 39. Kg3 {[%emt 0:00:14]} Rb2 {[%emt 0:00:08]} 40. Nf8 {[%emt 0:00:47]} g5 {[%emt 0:01:29]} 41. Rd7 {[%emt 0:00:30]} Rxb3+ {[%emt 0:00:46]} 42. Kf2 {[%emt 0:00:14]} Rc3 {[%emt 0:00:51]} 43. Nh7 {[%emt 0:00:32]} Rc6 {[%emt 0:01:06]} 44. e5 {[%emt 0:00:12]} 1-0

[Event "84th ESP-ch 2019"]
[Site "Marbella"]
[Date "2019.11.23"]
[Round "8.24"]
[White "Guerra Rivera, Salvador"]
[Black "Ramirez Diaz, Jose Ramon"]
[Result "1-0"]
[ECO "B09"]
[WhiteElo "2334"]
[BlackElo "2171"]
[Annotator "NA"]
[PlyCount "71"]
[EventDate "2019.11.16"]
[EventType "swiss"]
[EventCountry "ESP"]
[SourceTitle "playchess.com"]
[Source "ChessBase"]
[SourceQuality "1"]
[TimeControl "5400+30"]

1. e4 {[%emt 0:00:00]} d6 {[%emt 0:00:00]} 2. d4 {[%emt 0:00:00]} Nf6 {[%emt 0:00:00]} 3. Nc3 {[%emt 0:00:00]} g6 {[%emt 0:00:09]} 4. f4 {[%emt 0:00:23]} Bg7 {[%emt 0:00:11]} 5. Nf3 {[%emt 0:00:06]} c5 {[%emt 0:00:25]} 6. Bb5+ {[%emt 0:00:21]} Bd7 {[%emt 0:00:13]} 7. e5 {[%emt 0:00:20]} Ng4 {[%emt 0:00:24]} 8. e6 {[%emt 0:00:55]} fxe6 {[%emt 0:00:27]} 9. Ng5 {[%emt 0:00:16]} Bxb5 {[%emt 0:00:29]} 10. Nxe6 {[%emt 0:00:50]} Bxd4 {[%emt 0:00:12]} 11. Nxb5 {[%emt 0:00:39]} Qa5+ {[%emt 0:01:34]} 12. Qd2 {[%emt 0:00:15]} Bf2+ {[%emt 0:00:43]} 13. Kd1 {[%emt 0:00:11]} Ne3+ {[%emt 0:00:58]} 14. Ke2 {[%emt 0:00:05]} Qxb5+ {[%emt 0:00:15]} 15. Kxf2 {[%emt 0:00:04]} Ng4+ {[%emt 0:00:11]} 16. Kg3 {[%emt 0:00:07]} Kd7 {[%emt 0:00:07]} 17. Re1 {[%emt 0:08:30]} Nf6 {[%emt 0:02:22]} 18. b3 {[%emt 0:00:56]} Na6 {[%emt 0:14:00]} 19. Bb2 {[%emt 0:02:02]} Rhg8 {[%emt 0:10:57]} 20. Bxf6 {[%emt 0:25:05]} exf6 {[%emt 0:00:15]} 21. Rad1 {[%emt 0:00:15]} Qc6 {[%emt 0:00:37]} 22. Qc3 {[%emt 0:00:11]} f5 {[%emt 0:19:33]} 23. Ng5 {[%emt 0:00:37]} Rae8 {[%emt 0:05:21]} 24. Nf7 {[%emt 0:11:31]} Kc7 {[%emt 0:11:46]} 25. Rxd6 {[%emt 0:01:16]} Qb5 {[%emt 0:00:34]} 26. Rde6 {[%emt 0:00:07]} Rxe6 {[%emt 0:03:17]} 27. Rxe6 {[%emt 0:00:02]} Kb8 {[%emt 0:01:56]} 28. Qe5+ {[%emt 0:07:11]} Nc7 {[%emt 0:01:00]} 29. Re7 {[%emt 0:00:20]} Qc6 {[%emt 0:01:58]} 30. Ng5 {[%emt 0:00:47]} b6 {[%emt 0:04:01]} 31. Ne6 {[%emt 0:00:19]} Rc8 {[%emt 0:00:45]} 32. Nxc7 {[%emt 0:00:13]} Rxc7 {[%emt 0:00:05]} 33. Rxh7 {[%emt 0:00:05]} Kb7 {[%emt 0:00:37]} 34. Rxc7+ {[%emt 0:00:06]} Qxc7 {[%emt 0:00:04]} 35. Qxc7+ {[%emt 0:00:07]} Kxc7 {[%emt 0:00:04]} 36. Kh4 {[%emt 0:00:06]} 1-0

[Event "84th ESP-ch 2019"]
[Site "Marbella"]
[Date "2019.11.23"]
[Round "8.25"]
[White "Zurano Lopez, Pedro"]
[Black "Jaime Montalvan, Luis Felipe"]
[Result "1-0"]
[ECO "A04"]
[WhiteElo "2292"]
[BlackElo "2167"]
[Annotator "NA"]
[PlyCount "51"]
[EventDate "2019.11.16"]
[EventType "swiss"]
[EventCountry "ESP"]
[SourceTitle "playchess.com"]
[Source "ChessBase"]
[SourceQuality "1"]
[TimeControl "5400+30"]

1. Nf3 {[%emt 0:00:00]} b6 {[%emt 0:01:37]} 2. e4 {[%emt 0:03:34]} Bb7 {[%emt 0:02:03]} 3. Nc3 {[%emt 0:03:58]} c5 {[%emt 0:00:07]} 4. d4 {[%emt 0:00:05]} cxd4 {[%emt 0:01:50]} 5. Nxd4 {[%emt 0:01:34]} a6 {[%emt 0:00:33]} 6. Be3 {[%emt 0:04:17]} d6 {[%emt 0:00:30]} 7. Bc4 {[%emt 0:03:13]} e6 {[%emt 0:00:47]} 8. a4 {[%emt 0:03:35]} Nf6 {[%emt 0:09:48]} 9. f3 {[%emt 0:00:30]} Nbd7 {[%emt 0:00:30]} 10. O-O {[%emt 0:00:30]} Ne5 {[%emt 0:00:30]} 11. Bxe6 {[%emt 0:00:30]} fxe6 {[%emt 0:00:30]} 12. Nxe6 {[%emt 0:00:30]} Qd7 {[%emt 0:00:30]} 13. Nd5 {[%emt 0:00:30]} Bxd5 {[%emt 0:00:30]} 14. exd5 {[%emt 0:00:30]} Qb7 {[%emt 0:00:30]} 15. f4 {[%emt 0:00:30]} Ned7 {[%emt 0:00:30]} 16. c4 {[%emt 0:00:30]} Kf7 {[%emt 1:00:22]} 17. g4 {[%emt 0:21:41]} Nc5 {[%emt 0:00:28]} 18. g5 {[%emt 0:02:29]} Nxe6 {[%emt 0:00:08]} 19. dxe6+ {[%emt 0:02:53]} Kxe6 {[%emt 0:00:30]} 20. gxf6 {[%emt 0:00:30]} gxf6 {[%emt 0:00:15]} 21. f5+ {[%emt 0:06:12]} Kf7 {[%emt 0:08:14]} 22. Qh5+ {[%emt 0:04:03]} Ke7 23. Rae1 {[%emt 0:00:10]} Rg8+ {[%emt 0:00:56]} 24. Bg5+ {[%emt 0:02:30]} Kd8 {[%emt 0:00:00]} 25. Qe8+ {[%emt 0:00:12]} Kc7 26. Qf7+ {Kd7} 1-0

[Event "84th ESP-ch 2019"]
[Site "Marbella"]
[Date "2019.11.23"]
[Round "8.27"]
[White "Guillo Longares, Cecilia"]
[Black "Martinez Piqueras, Carlos"]
[Result "0-1"]
[ECO "E11"]
[WhiteElo "2100"]
[BlackElo "2206"]
[Annotator "ChessBase"]
[PlyCount "62"]
[EventDate "2019.11.16"]
[EventType "swiss"]
[EventCountry "ESP"]
[SourceTitle "playchess.com"]
[Source "ChessBase"]
[SourceQuality "1"]
[TimeControl "5400+30"]

1. d4 {[%emt 0:00:00]} Nf6 {[%emt 0:00:18]} 2. c4 {[%emt 0:00:00]} e6 {[%emt 0:00:25]} 3. Nf3 {[%emt 0:00:00]} Bb4+ {[%emt 0:00:25]} 4. Bd2 {[%emt 0:00:00]} c5 {[%emt 0:00:30]} 5. dxc5 {[%emt 0:00:30]} Bxc5 {[%emt 0:02:22]} 6. b4 {[%emt 0:02:45]} Be7 {[%emt 0:02:12]} 7. g3 {[%emt 0:00:51]} Ne4 {[%emt 0:03:05]} 8. a3 {[%emt 0:00:41]} Bf6 {[%emt 0:03:34]} 9. Ra2 {[%emt 0:00:07]} d5 {[%emt 0:01:12]} 10. cxd5 {[%emt 0:02:32]} Qxd5 {[%emt 0:17:40]} 11. Rc2 {[%emt 0:01:25]} Bd7 {[%emt 0:01:05]} 12. Qc1 {[%emt 0:01:42]} O-O {[%emt 0:06:15]} 13. Bg2 {[%emt 0:03:45]} Ba4 {[%emt 0:05:54]} 14. Rc8 {[%emt 0:01:23]} Nd7 {[%emt 0:00:07]} 15. Rxf8+ {[%emt 0:01:00]} Rxf8 {[%emt 0:00:06]} 16. O-O {[%emt 0:00:57]} Nb6 {[%emt 0:00:09]} 17. Ng5 {[%emt 0:08:10]} Bxg5 {[%emt 0:15:32]} 18. Bxg5 {[%emt 0:00:21]} Bc6 {[%emt 0:00:17]} 19. Qc2 {[%emt 0:13:26]} Qf5 {[%emt 0:05:36]} 20. Be3 {[%emt 0:17:04]} Nxg3 {[%emt 0:04:50]} 21. Rc1 {[%emt 0:00:21]} Bxg2 {[%emt 0:10:39]} 22. Kxg2 {[%emt 0:00:14]} Ne4 {[%emt 0:00:18]} 23. f3 {[%emt 0:06:21]} Qg6+ {[%emt 0:02:49]} 24. Kf1 {[%emt 0:00:35]} Nd5 {[%emt 0:01:21]} 25. Bxa7 {[%emt 0:06:04]} f5 {[%emt 0:05:54]} 26. Bc5 {[%emt 0:13:01]} Nxc5 {[%emt 0:03:40]} 27. Qxc5 {[%emt 0:00:18]} f4 {[%emt 0:00:04]} 28. Qf2 {[%emt 0:01:35]} Ne3+ {[%emt 0:00:29]} 29. Ke1 {[%emt 0:00:05]} Qf6 {[%emt 0:01:22]} 30. Qg1 {[%emt 0:03:59]} Rd8 {[%emt 0:01:44]} 31. Kf2 {[%emt 0:03:28]} Qh4+ {[%emt 0:00:17]} 0-1

[Event "84th ESP-ch 2019"]
[Site "Marbella"]
[Date "2019.11.23"]
[Round "8.28"]
[White "Rodriguez Reinoso, Victoriano"]
[Black "Hernando Rodrigo, Inmaculada"]
[Result "1-0"]
[ECO "A10"]
[WhiteElo "2204"]
[BlackElo "1863"]
[Annotator "NA"]
[PlyCount "43"]
[EventDate "2019.11.16"]
[EventType "swiss"]
[EventCountry "ESP"]
[SourceTitle "playchess.com"]
[Source "ChessBase"]
[SourceQuality "1"]
[TimeControl "5400+30"]

1. c4 {[%emt 0:00:00]} g6 {[%emt 0:00:00]} 2. g3 {[%emt 0:00:00]} Bg7 {[%emt 0:00:00]} 3. Bg2 {[%emt 0:00:08]} e5 {[%emt 0:00:09]} 4. Nc3 {[%emt 0:00:25]} Ne7 {[%emt 0:00:31]} 5. Nf3 {[%emt 0:01:52]} c6 {[%emt 0:01:14]} 6. d4 {[%emt 0:02:41]} exd4 {[%emt 0:05:33]} 7. Nxd4 {[%emt 0:00:13]} Qb6 {[%emt 0:10:06]} 8. Nb3 {[%emt 0:01:16]} Qb4 {[%emt 0:14:14]} 9. Qd3 {[%emt 0:10:38]} d5 {[%emt 0:04:26]} 10. cxd5 {[%emt 0:00:36]} cxd5 {[%emt 0:15:54]} 11. O-O {[%emt 0:03:19]} Bf5 {[%emt 0:09:15]} 12. Nxd5 {[%emt 0:03:01]} Bxd3 {[%emt 0:12:07]} 13. Nxb4 {[%emt 0:01:40]} Bxe2 {[%emt 0:00:06]} 14. Re1 {[%emt 0:00:14]} a5 {[%emt 0:01:39]} 15. Nd5 {[%emt 0:01:07]} Nxd5 {[%emt 0:06:20]} 16. Bxd5 {[%emt 0:00:24]} a4 {[%emt 0:00:17]} 17. Rxe2+ {[%emt 0:00:47]} Kd7 {[%emt 0:00:09]} 18. Nc5+ {[%emt 0:03:21]} Kd6 {[%emt 0:01:01]} 19. Bxb7 {[%emt 0:00:22]} Ra7 {[%emt 0:01:57]} 20. Bf4+ {[%emt 0:00:22]} Kxc5 {[%emt 0:00:44]} 21. Be3+ {[%emt 0:00:51]} Bd4 {[%emt 0:01:03]} 22. Rc1+ {[%emt 0:00:09]} 1-0